[Event "Titled Tuesday Blitz May 31 Early 2022"]
[White "Fernandez Siles, Luis"]
[Black "Koellner, Ruben Gideon"]
[WhiteFideId "2209420"]
[BlackFideId "12993093"]
[WhiteElo "2212"]
[BlackElo "2550"]
[Result "1/2-1/2"]
[Round "07"]
[TimeControl "180+1"]
[Date "2022.06.01"]
[WhiteClock "0:00:09"]
[BlackClock "0:00:05"]

1. e4 {[%clk 0:03:00]}  d6 {[%clk 0:02:53]} 2. Nc3 {[%clk 0:02:59]}  Nf6 {[%clk 0:02:53]} 3. f4 {[%clk 0:02:59]}  e5 {[%clk 0:02:53]} 4. Nf3 {[%clk 0:02:58]}  exf4 {[%clk 0:02:53]} 5. Bc4 {[%clk 0:02:52]}  Nh5 {[%clk 0:02:53]} 6. O-O {[%clk 0:02:50]}  g6 {[%clk 0:02:53]} 7. d4 {[%clk 0:02:46]}  Bh6 {[%clk 0:02:50]} 8. Ne2 {[%clk 0:02:19]}  O-O {[%clk 0:02:48]} 9. g3 {[%clk 0:02:18]}  Bh3 {[%clk 0:02:47]} 10. Re1 {[%clk 0:01:49]}  c6 {[%clk 0:02:10]} 11. Nxf4 {[%clk 0:01:42]}  Nxf4 {[%clk 0:02:09]} 12. Bxf4 {[%clk 0:01:36]}  Bxf4 {[%clk 0:02:09]} 13. gxf4 {[%clk 0:01:37]}  d5 {[%clk 0:02:09]} 14. exd5 {[%clk 0:01:36]}  cxd5 {[%clk 0:02:10]} 15. Bf1 {[%clk 0:01:20]}  Bxf1 {[%clk 0:02:02]} 16. Rxf1 {[%clk 0:01:14]}  Nc6 {[%clk 0:01:59]} 17. c3 {[%clk 0:01:11]}  Qf6 {[%clk 0:01:54]} 18. Ne5 {[%clk 0:01:09]}  Qf5 {[%clk 0:01:51]} 19. Qg4 {[%clk 0:01:01]}  Qxg4+ {[%clk 0:01:22]} 20. Nxg4 {[%clk 0:01:00]}  f6 {[%clk 0:01:23]} 21. f5 {[%clk 0:00:55]}  g5 {[%clk 0:01:22]} 22. Rae1 {[%clk 0:00:50]}  h5 {[%clk 0:01:14]} 23. Ne3 {[%clk 0:00:45]}  Rad8 {[%clk 0:01:14]} 24. Re2 {[%clk 0:00:37]}  Kf7 {[%clk 0:01:05]} 25. Rfe1 {[%clk 0:00:37]}  Rfe8 {[%clk 0:00:59]} 26. Kf2 {[%clk 0:00:22]}  Re4 {[%clk 0:00:58]} 27. Ng2 {[%clk 0:00:19]}  Rxe2+ {[%clk 0:00:49]} 28. Rxe2 {[%clk 0:00:19]}  Ne7 {[%clk 0:00:43]} 29. Ne3 {[%clk 0:00:19]}  Rd6 {[%clk 0:00:41]} 30. Rc2 {[%clk 0:00:19]}  b5 {[%clk 0:00:40]} 31. b3 {[%clk 0:00:19]}  a5 {[%clk 0:00:35]} 32. Ke2 {[%clk 0:00:19]}  Ra6 {[%clk 0:00:31]} 33. Kd3 {[%clk 0:00:19]}  a4 {[%clk 0:00:32]} 34. c4 {[%clk 0:00:20]}  axb3 {[%clk 0:00:30]} 35. axb3 {[%clk 0:00:21]}  bxc4+ {[%clk 0:00:30]} 36. bxc4 {[%clk 0:00:20]}  Ra3+ {[%clk 0:00:24]} 37. Rc3 {[%clk 0:00:20]}  Ra5 {[%clk 0:00:18]} 38. cxd5 {[%clk 0:00:19]}  Nxd5 {[%clk 0:00:16]} 39. Nxd5 {[%clk 0:00:19]}  Rxd5 {[%clk 0:00:17]} 40. Rc7+ {[%clk 0:00:19]}  Ke8 {[%clk 0:00:16]} 41. Ke4 {[%clk 0:00:20]}  Ra5 {[%clk 0:00:14]} 42. Rh7 {[%clk 0:00:20]}  h4 {[%clk 0:00:14]} 43. Rh6 {[%clk 0:00:16]}  Ke7 {[%clk 0:00:14]} 44. Rh7+ {[%clk 0:00:17]}  Kf8 {[%clk 0:00:13]} 45. Rb7 {[%clk 0:00:13]}  Ra2 {[%clk 0:00:12]} 46. Kd5 {[%clk 0:00:13]}  Re2 {[%clk 0:00:09]} 47. Ra7 {[%clk 0:00:11]}  g4 {[%clk 0:00:08]} 48. Rh7 {[%clk 0:00:11]}  h3 {[%clk 0:00:08]} 49. Rh4 {[%clk 0:00:11]}  Rg2 {[%clk 0:00:04]} 50. Ke6 {[%clk 0:00:11]}  Kg7 {[%clk 0:00:05]} 51. d5 {[%clk 0:00:11]}  Re2+ {[%clk 0:00:05]} 52. Kd6 {[%clk 0:00:11]}  Re4 {[%clk 0:00:01]} 53. Kd7 {[%clk 0:00:09]}  Kf7 {[%clk 0:00:01]} 54. Rh7+ {[%clk 0:00:09]}  Kg8 {[%clk 0:00:01]} 55. Rh4 {[%clk 0:00:10]}  Kg7 {[%clk 0:00:02]} 56. d6 {[%clk 0:00:09]}  Kf7 {[%clk 0:00:02]} 57. Rh7+ {[%clk 0:00:08]}  Kg8 {[%clk 0:00:03]} 58. Rh4 {[%clk 0:00:09]}  Kf7 {[%clk 0:00:04]} 59. Rh7+ {[%clk 0:00:09]}  Kg8 {[%clk 0:00:04]} 60. Rh4 {[%clk 0:00:09]}  Kf7 {[%clk 0:00:05]} 1/2-1/2


[Site "https://www.chess.com"]

[Event "Titled Tuesday Blitz May 31 Early 2022"]
[White "Gallo Garcia, Kemel Antonio"]
[Black "Paravyan, David"]
[WhiteFideId "3523896"]
[BlackFideId "4194985"]
[WhiteElo "2359"]
[BlackElo "2569"]
[Result "0-1"]
[Round "07"]
[TimeControl "180+1"]
[Date "2022.05.31"]
[WhiteClock "0:00:02"]
[BlackClock "0:00:06"]

1. e4 {[%clk 0:02:56]}  e5 {[%clk 0:03:00]} 2. Nf3 {[%clk 0:02:56]}  Nf6 {[%clk 0:03:00]} 3. Nxe5 {[%clk 0:02:55]}  d6 {[%clk 0:03:01]} 4. Nf3 {[%clk 0:02:54]}  Nxe4 {[%clk 0:03:00]} 5. Qe2 {[%clk 0:02:46]}  Qe7 {[%clk 0:03:00]} 6. Nc3 {[%clk 0:02:46]}  Nxc3 {[%clk 0:03:00]} 7. dxc3 {[%clk 0:02:47]}  Nc6 {[%clk 0:03:00]} 8. Bg5 {[%clk 0:02:39]}  Qxe2+ {[%clk 0:02:59]} 9. Bxe2 {[%clk 0:02:40]}  h6 {[%clk 0:02:59]} 10. Be3 {[%clk 0:02:38]}  Be7 {[%clk 0:02:58]} 11. O-O-O {[%clk 0:02:37]}  O-O {[%clk 0:02:56]} 12. Nd4 {[%clk 0:02:35]}  Nxd4 {[%clk 0:02:56]} 13. cxd4 {[%clk 0:02:29]}  Bg5 {[%clk 0:02:55]} 14. Bxg5 {[%clk 0:02:26]}  hxg5 {[%clk 0:02:56]} 15. h4 {[%clk 0:02:20]}  Re8 {[%clk 0:02:56]} 16. Bd3 {[%clk 0:02:04]}  gxh4 {[%clk 0:02:44]} 17. Rxh4 {[%clk 0:02:03]}  g6 {[%clk 0:02:45]} 18. Kd2 {[%clk 0:01:32]}  Bd7 {[%clk 0:02:43]} 19. f3 {[%clk 0:01:26]}  Kg7 {[%clk 0:02:39]} 20. c4 {[%clk 0:01:19]}  Rh8 {[%clk 0:02:39]} 21. Rdh1 {[%clk 0:01:18]}  Rxh4 {[%clk 0:02:39]} 22. Rxh4 {[%clk 0:01:19]}  Be6 {[%clk 0:02:33]} 23. d5 {[%clk 0:01:17]}  Bd7 {[%clk 0:02:33]} 24. Rh1 {[%clk 0:01:15]}  a5 {[%clk 0:02:30]} 25. b3 {[%clk 0:01:13]}  b6 {[%clk 0:02:25]} 26. Kc3 {[%clk 0:01:13]}  Re8 {[%clk 0:02:24]} 27. Kd4 {[%clk 0:01:13]}  Re7 {[%clk 0:02:17]} 28. a3 {[%clk 0:01:11]}  Re8 {[%clk 0:02:16]} 29. Rc1 {[%clk 0:01:10]}  Rh8 {[%clk 0:02:15]} 30. b4 {[%clk 0:01:11]}  Ra8 {[%clk 0:01:55]} 31. Re1 {[%clk 0:00:48]}  Kf6 {[%clk 0:01:49]} 32. Bc2 {[%clk 0:00:36]}  axb4 {[%clk 0:01:46]} 33. axb4 {[%clk 0:00:36]}  Ra2 {[%clk 0:01:46]} 34. Kc3 {[%clk 0:00:37]}  Bf5 {[%clk 0:01:15]} 35. Bxf5 {[%clk 0:00:32]}  gxf5 {[%clk 0:01:16]} 36. Rg1 {[%clk 0:00:26]}  Kg5 {[%clk 0:01:11]} 37. Kd4 {[%clk 0:00:22]}  Rb2 {[%clk 0:00:51]} 38. b5 {[%clk 0:00:20]}  Kf4 {[%clk 0:00:36]} 39. g4 {[%clk 0:00:20]}  Rd2+ {[%clk 0:00:35]} 40. Kc3 {[%clk 0:00:20]}  Rf2 {[%clk 0:00:36]} 41. gxf5 {[%clk 0:00:16]}  Rxf3+ {[%clk 0:00:35]} 42. Kd4 {[%clk 0:00:16]}  Kxf5 {[%clk 0:00:26]} 43. Re1 {[%clk 0:00:17]}  Kf6 {[%clk 0:00:24]} 44. Re8 {[%clk 0:00:16]}  Ra3 {[%clk 0:00:21]} 45. Rc8 {[%clk 0:00:16]}  Ra7 {[%clk 0:00:22]} 46. Ke4 {[%clk 0:00:17]}  Ke7 {[%clk 0:00:22]} 47. Kd4 {[%clk 0:00:11]}  f5 {[%clk 0:00:22]} 48. Rh8 {[%clk 0:00:02]}  Ra1 {[%clk 0:00:21]} 49. Rh7+ {[%clk 0:00:03]}  Kd8 {[%clk 0:00:22]} 50. Rf7 {[%clk 0:00:02]}  Rf1 {[%clk 0:00:21]} 51. Kd3 {[%clk 0:00:02]}  Rf4 {[%clk 0:00:21]} 52. Kc3 {[%clk 0:00:02]}  Kc8 {[%clk 0:00:19]} 53. Kd3 {[%clk 0:00:02]}  Rf1 {[%clk 0:00:19]} 54. Rf8+ {[%clk 0:00:03]}  Kd7 {[%clk 0:00:17]} 55. Rf7+ {[%clk 0:00:04]}  Kd8 {[%clk 0:00:18]} 56. Rf8+ {[%clk 0:00:04]}  Ke7 {[%clk 0:00:18]} 57. Rc8 {[%clk 0:00:04]}  Kd7 {[%clk 0:00:17]} 58. Rf8 {[%clk 0:00:04]}  Rf4 {[%clk 0:00:14]} 59. Rf7+ {[%clk 0:00:04]}  Kc8 {[%clk 0:00:14]} 60. Rf8+ {[%clk 0:00:04]}  Kb7 {[%clk 0:00:15]} 61. Rf7 {[%clk 0:00:05]}  Rf3+ {[%clk 0:00:06]} 62. Kd4 {[%clk 0:00:06]}  Rf1 {[%clk 0:00:05]} 63. Rf8 {[%clk 0:00:05]}  f4 {[%clk 0:00:05]} 64. Ke4 {[%clk 0:00:02]}  Re1+ {[%clk 0:00:05]} 65. Kd4 {[%clk 0:00:03]}  Rf1 {[%clk 0:00:06]} 66. Ke4 {[%clk 0:00:02]}  Rc1 {[%clk 0:00:06]} 0-1


[Site "https://www.chess.com"]

[Event "Titled Tuesday Blitz May 31 Early 2022"]
[White "Harsha Bharathakoti"]
[Black "Kovalev, Vladislav"]
[WhiteFideId "5078776"]
[BlackFideId "13504398"]
[WhiteElo "2575"]
[BlackElo "2530"]
[Result "1-0"]
[Round "07"]
[TimeControl "180+1"]
[Date "2022.05.31"]
[WhiteClock "0:00:16"]
[BlackClock "0:00:02"]

1. e4 {[%clk 0:03:00]}  e5 {[%clk 0:03:00]} 2. Nc3 {[%clk 0:02:57]}  Nc6 {[%clk 0:02:59]} 3. Bc4 {[%clk 0:02:56]}  Nf6 {[%clk 0:02:53]} 4. d3 {[%clk 0:02:55]}  Na5 {[%clk 0:02:53]} 5. Nge2 {[%clk 0:02:52]}  Nxc4 {[%clk 0:02:50]} 6. dxc4 {[%clk 0:02:53]}  d6 {[%clk 0:02:39]} 7. O-O {[%clk 0:02:53]}  Be6 {[%clk 0:02:38]} 8. Qd3 {[%clk 0:02:53]}  Nd7 {[%clk 0:02:38]} 9. b3 {[%clk 0:02:50]}  Be7 {[%clk 0:02:34]} 10. Ng3 {[%clk 0:02:39]}  O-O {[%clk 0:02:33]} 11. Nf5 {[%clk 0:02:30]}  g6 {[%clk 0:02:13]} 12. Bh6 {[%clk 0:02:13]}  Re8 {[%clk 0:01:46]} 13. Ng7 {[%clk 0:02:13]}  Bf8 {[%clk 0:01:47]} 14. Nxe6 {[%clk 0:02:02]}  Rxe6 {[%clk 0:01:48]} 15. Bxf8 {[%clk 0:02:02]}  Qxf8 {[%clk 0:01:46]} 16. Nd5 {[%clk 0:02:02]}  Rc8 {[%clk 0:01:45]} 17. Rae1 {[%clk 0:01:56]}  Nb6 {[%clk 0:01:37]} 18. Nc3 {[%clk 0:01:52]}  c6 {[%clk 0:01:31]} 19. Rd1 {[%clk 0:01:51]}  Qe7 {[%clk 0:01:29]} 20. Rd2 {[%clk 0:01:50]}  Nd7 {[%clk 0:01:27]} 21. Rfd1 {[%clk 0:01:50]}  Rf8 {[%clk 0:01:19]} 22. Qe3 {[%clk 0:01:49]}  b6 {[%clk 0:01:03]} 23. b4 {[%clk 0:01:20]}  f5 {[%clk 0:00:34]} 24. b5 {[%clk 0:01:05]}  Rc8 {[%clk 0:00:26]} 25. bxc6 {[%clk 0:00:32]}  Rxc6 {[%clk 0:00:27]} 26. exf5 {[%clk 0:00:33]}  gxf5 {[%clk 0:00:27]} 27. Qf3 {[%clk 0:00:33]}  Rxc4 {[%clk 0:00:22]} 28. Nd5 {[%clk 0:00:34]}  Qf7 {[%clk 0:00:14]} 29. Ne3 {[%clk 0:00:33]}  Rf4 {[%clk 0:00:04]} 30. Qa8+ {[%clk 0:00:29]}  Nf8 {[%clk 0:00:05]} 31. Rxd6 {[%clk 0:00:27]}  Rxd6 {[%clk 0:00:06]} 32. Rxd6 {[%clk 0:00:28]}  Rd4 {[%clk 0:00:06]} 33. Rd8 {[%clk 0:00:23]}  f4 {[%clk 0:00:02]} 34. Ng4 {[%clk 0:00:18]}  Kg7 {[%clk 0:00:02]} 35. h3 {[%clk 0:00:16]} 1-0


[Site "https://www.chess.com"]

[Event "Titled Tuesday Blitz May 31 Early 2022"]
[White "Jaferian, Koosha"]
[Black "Martin Carmona, Gaston Manuel"]
[WhiteFideId "12507440"]
[BlackFideId "22284567"]
[WhiteElo "2030"]
[BlackElo "2162"]
[Result "1/2-1/2"]
[Round "07"]
[TimeControl "180+1"]
[Date "2022.06.01"]
[WhiteClock "0:00:06"]
[BlackClock "0:00:09"]

1. Nf3 {[%clk 0:03:00]}  Nf6 {[%clk 0:02:58]} 2. b3 {[%clk 0:03:01]}  g6 {[%clk 0:02:58]} 3. Bb2 {[%clk 0:03:02]}  Bg7 {[%clk 0:02:58]} 4. g3 {[%clk 0:03:02]}  O-O {[%clk 0:02:59]} 5. Bg2 {[%clk 0:03:03]}  b6 {[%clk 0:03:00]} 6. O-O {[%clk 0:03:02]}  Bb7 {[%clk 0:03:00]} 7. c4 {[%clk 0:03:02]}  c5 {[%clk 0:03:00]} 8. d4 {[%clk 0:03:03]}  cxd4 {[%clk 0:02:59]} 9. Nxd4 {[%clk 0:03:04]}  Qc8 {[%clk 0:02:43]} 10. Nd2 {[%clk 0:03:02]}  Bxg2 {[%clk 0:02:39]} 11. Kxg2 {[%clk 0:03:02]}  Qb7+ {[%clk 0:02:39]} 12. Kg1 {[%clk 0:03:02]}  Nc6 {[%clk 0:02:39]} 13. Rc1 {[%clk 0:03:00]}  Rac8 {[%clk 0:02:33]} 14. N2f3 {[%clk 0:03:00]}  Nxd4 {[%clk 0:02:25]} 15. Bxd4 {[%clk 0:03:01]}  d6 {[%clk 0:02:19]} 16. Bb2 {[%clk 0:02:58]}  b5 {[%clk 0:02:18]} 17. cxb5 {[%clk 0:02:55]}  Qxb5 {[%clk 0:02:17]} 18. Qd2 {[%clk 0:02:54]}  Ne4 {[%clk 0:01:57]} 19. Qe3 {[%clk 0:02:40]}  Bxb2 {[%clk 0:01:29]} 20. Rxc8 {[%clk 0:02:39]}  Rxc8 {[%clk 0:01:30]} 21. Qxe4 {[%clk 0:02:40]}  Bf6 {[%clk 0:01:30]} 22. Rd1 {[%clk 0:02:30]}  a5 {[%clk 0:01:23]} 23. Kg2 {[%clk 0:02:30]}  Qc6 {[%clk 0:01:18]} 24. Qe3 {[%clk 0:02:11]}  a4 {[%clk 0:01:14]} 25. b4 {[%clk 0:02:05]}  Qc4 {[%clk 0:01:10]} 26. a3 {[%clk 0:02:05]}  Qc2 {[%clk 0:01:04]} 27. Rd3 {[%clk 0:02:02]}  Kg7 {[%clk 0:00:52]} 28. h4 {[%clk 0:01:56]}  h5 {[%clk 0:00:52]} 29. Nd2 {[%clk 0:01:54]}  Qc6+ {[%clk 0:00:43]} 30. Ne4 {[%clk 0:01:45]}  Bb2 {[%clk 0:00:43]} 31. Qf3 {[%clk 0:01:39]}  f5 {[%clk 0:00:37]} 32. Ng5 {[%clk 0:01:34]}  Qxf3+ {[%clk 0:00:38]} 33. Kxf3 {[%clk 0:01:35]}  Kf6 {[%clk 0:00:36]} 34. Ke3 {[%clk 0:01:11]}  Rc1 {[%clk 0:00:30]} 35. b5 {[%clk 0:01:00]}  Rc5 {[%clk 0:00:27]} 36. Kd2 {[%clk 0:00:47]}  Rxb5 {[%clk 0:00:26]} 37. Kc2 {[%clk 0:00:48]}  Ba1 {[%clk 0:00:22]} 38. Re3 {[%clk 0:00:37]}  Rb2+ {[%clk 0:00:20]} 39. Kc1 {[%clk 0:00:37]}  e5 {[%clk 0:00:19]} 40. Rd3 {[%clk 0:00:32]}  Rb6 {[%clk 0:00:19]} 41. e4 {[%clk 0:00:26]}  Bd4 {[%clk 0:00:16]} 42. f3 {[%clk 0:00:24]}  Bf2 {[%clk 0:00:15]} 43. f4 {[%clk 0:00:20]}  Bxg3 {[%clk 0:00:14]} 44. Rxg3 {[%clk 0:00:19]}  exf4 {[%clk 0:00:12]} 45. Rd3 {[%clk 0:00:14]}  fxe4 {[%clk 0:00:07]} 46. Nxe4+ {[%clk 0:00:15]}  Ke5 {[%clk 0:00:08]} 47. Ng5 {[%clk 0:00:15]}  d5 {[%clk 0:00:08]} 48. Kd2 {[%clk 0:00:12]}  Rb2+ {[%clk 0:00:07]} 49. Ke1 {[%clk 0:00:10]}  Ra2 {[%clk 0:00:06]} 50. Kf1 {[%clk 0:00:05]}  Kf5 {[%clk 0:00:04]} 51. Rxd5+ {[%clk 0:00:03]}  Kg4 {[%clk 0:00:05]} 52. Rd3 {[%clk 0:00:03]}  Kxh4 {[%clk 0:00:05]} 53. Nf3+ {[%clk 0:00:04]}  Kg4 {[%clk 0:00:05]} 54. Nd4 {[%clk 0:00:05]}  h4 {[%clk 0:00:05]} 55. Ne6 {[%clk 0:00:04]}  g5 {[%clk 0:00:05]} 56. Rd5 {[%clk 0:00:04]}  Kf3 {[%clk 0:00:06]} 57. Nxg5+ {[%clk 0:00:04]}  Kg3 {[%clk 0:00:06]} 58. Ne4+ {[%clk 0:00:04]}  Kf3 {[%clk 0:00:06]} 59. Ng5+ {[%clk 0:00:04]}  Ke3 {[%clk 0:00:07]} 60. Re5+ {[%clk 0:00:04]}  Kd4 {[%clk 0:00:06]} 61. Re4+ {[%clk 0:00:05]}  Kd3 {[%clk 0:00:05]} 62. Rxa4 {[%clk 0:00:05]}  h3 {[%clk 0:00:03]} 63. Rxf4 {[%clk 0:00:03]}  h2 {[%clk 0:00:03]} 64. Rh4 {[%clk 0:00:03]}  Kc3 {[%clk 0:00:02]} 65. Rh3+ {[%clk 0:00:02]}  Kc4 {[%clk 0:00:02]} 66. Nf3 {[%clk 0:00:02]}  Rxa3 {[%clk 0:00:02]} 67. Rxh2 {[%clk 0:00:01]}  Rxf3+ {[%clk 0:00:01]} 68. Ke2 {[%clk 0:00:02]}  Rc3 {[%clk 0:00:02]} 69. Rh4+ {[%clk 0:00:03]}  Kb3 {[%clk 0:00:03]} 70. Rf4 {[%clk 0:00:03]}  Rc2+ {[%clk 0:00:03]} 71. Kd3 {[%clk 0:00:03]}  Rc3+ {[%clk 0:00:04]} 72. Kd2 {[%clk 0:00:04]}  Rc2+ {[%clk 0:00:04]} 73. Kd1 {[%clk 0:00:04]}  Rc7 {[%clk 0:00:04]} 74. Rf8 {[%clk 0:00:05]}  Kb4 {[%clk 0:00:05]} 75. Rb8+ {[%clk 0:00:05]}  Kc5 {[%clk 0:00:06]} 76. Rb2 {[%clk 0:00:06]}  Kd6 {[%clk 0:00:06]} 77. Rd2+ {[%clk 0:00:06]}  Ke7 {[%clk 0:00:07]} 78. Re2+ {[%clk 0:00:06]}  Kd8 {[%clk 0:00:08]} 79. Rd2+ {[%clk 0:00:06]}  Rd7 {[%clk 0:00:08]} 80. Rxd7+ {[%clk 0:00:06]}  Kxd7 {[%clk 0:00:09]} 1/2-1/2


[Site "https://www.chess.com"]

[Event "Titled Tuesday Blitz May 31 Early 2022"]
[White "Jobava, Baadur"]
[Black "Vokhidov, Shamsiddin"]
[WhiteFideId "13601520"]
[BlackFideId "14204223"]
[WhiteElo "2617"]
[BlackElo "2611"]
[Result "1-0"]
[Round "07"]
[TimeControl "180+1"]
[Date "2022.05.31"]
[WhiteClock "0:00:15"]
[BlackClock "0:00:21"]

1. b3 {[%clk 0:03:00]}  e5 {[%clk 0:02:59]} 2. Bb2 {[%clk 0:03:01]}  Nc6 {[%clk 0:02:59]} 3. Nf3 {[%clk 0:03:02]}  e4 {[%clk 0:02:58]} 4. Nd4 {[%clk 0:03:02]}  Nxd4 {[%clk 0:02:57]} 5. Bxd4 {[%clk 0:03:03]}  Ne7 {[%clk 0:02:55]} 6. Bb2 {[%clk 0:03:02]}  d5 {[%clk 0:02:53]} 7. e3 {[%clk 0:03:03]}  Nc6 {[%clk 0:02:48]} 8. d3 {[%clk 0:03:02]}  Bf5 {[%clk 0:02:37]} 9. Nc3 {[%clk 0:03:01]}  exd3 {[%clk 0:02:22]} 10. Bxd3 {[%clk 0:03:00]}  Be6 {[%clk 0:02:07]} 11. O-O {[%clk 0:02:06]}  Be7 {[%clk 0:02:07]} 12. Qh5 {[%clk 0:01:58]}  Bf6 {[%clk 0:01:56]} 13. Rad1 {[%clk 0:01:52]}  g6 {[%clk 0:01:50]} 14. Qe2 {[%clk 0:01:42]}  Qe7 {[%clk 0:01:43]} 15. Bb5 {[%clk 0:01:37]}  Rd8 {[%clk 0:01:42]} 16. Bxc6+ {[%clk 0:01:30]}  bxc6 {[%clk 0:01:41]} 17. Qa6 {[%clk 0:01:30]}  Rd6 {[%clk 0:01:04]} 18. Qxa7 {[%clk 0:01:25]}  O-O {[%clk 0:01:04]} 19. Na4 {[%clk 0:01:22]}  Bxb2 {[%clk 0:01:03]} 20. Nxb2 {[%clk 0:01:23]}  Rdd8 {[%clk 0:01:01]} 21. Na4 {[%clk 0:01:20]}  Ra8 {[%clk 0:00:59]} 22. Qd4 {[%clk 0:01:19]}  Rfb8 {[%clk 0:00:58]} 23. Ra1 {[%clk 0:01:14]}  Bf5 {[%clk 0:00:56]} 24. Rfc1 {[%clk 0:01:11]}  Ra5 {[%clk 0:00:55]} 25. h3 {[%clk 0:01:07]}  Rba8 {[%clk 0:00:50]} 26. c4 {[%clk 0:01:01]}  Be4 {[%clk 0:00:38]} 27. Nc3 {[%clk 0:00:56]}  c5 {[%clk 0:00:34]} 28. Nxd5 {[%clk 0:00:44]}  cxd4 {[%clk 0:00:34]} 29. Nxe7+ {[%clk 0:00:44]}  Kf8 {[%clk 0:00:35]} 30. exd4 {[%clk 0:00:44]}  Rxa2 {[%clk 0:00:26]} 31. Rxa2 {[%clk 0:00:43]}  Rxa2 {[%clk 0:00:27]} 32. Nd5 {[%clk 0:00:30]}  Rb2 {[%clk 0:00:20]} 33. Nxc7 {[%clk 0:00:26]}  Rxb3 {[%clk 0:00:20]} 34. d5 {[%clk 0:00:24]}  Ke7 {[%clk 0:00:20]} 35. Re1 {[%clk 0:00:22]}  f5 {[%clk 0:00:20]} 36. f3 {[%clk 0:00:21]}  Rb1 {[%clk 0:00:21]} 37. Rxb1 {[%clk 0:00:18]}  Bxb1 {[%clk 0:00:22]} 38. c5 {[%clk 0:00:18]}  Ba2 {[%clk 0:00:20]} 39. Kf2 {[%clk 0:00:15]}  Kd7 {[%clk 0:00:21]} 40. d6 {[%clk 0:00:15]}  Kc6 {[%clk 0:00:21]} 41. Ke3 {[%clk 0:00:15]}  g5 {[%clk 0:00:21]} 42. Kd4 {[%clk 0:00:15]} 1-0


[Site "https://www.chess.com"]

[Event "Titled Tuesday Blitz May 31 Early 2022"]
[White "Jumabayev, Rinat"]
[Black "Domingo Nunez, Ruben"]
[WhiteFideId "13702661"]
[BlackFideId "22245570"]
[WhiteElo "2561"]
[BlackElo "2376"]
[Result "1-0"]
[Round "07"]
[TimeControl "180+1"]
[Date "2022.05.31"]
[WhiteClock "0:00:12"]
[BlackClock "0:00:01"]

1. c4 {[%clk 0:03:00]}  g6 {[%clk 0:02:54]} 2. e4 {[%clk 0:02:58]}  Bg7 {[%clk 0:02:53]} 3. Nf3 {[%clk 0:02:59]}  c5 {[%clk 0:02:50]} 4. d4 {[%clk 0:02:59]}  Qa5+ {[%clk 0:02:50]} 5. Nc3 {[%clk 0:02:49]}  d6 {[%clk 0:02:41]} 6. dxc5 {[%clk 0:02:33]}  dxc5 {[%clk 0:02:40]} 7. h3 {[%clk 0:02:10]}  Nc6 {[%clk 0:02:39]} 8. Be2 {[%clk 0:02:06]}  Bxc3+ {[%clk 0:02:08]} 9. bxc3 {[%clk 0:02:06]}  Nf6 {[%clk 0:02:09]} 10. O-O {[%clk 0:01:54]}  O-O {[%clk 0:02:02]} 11. Qc2 {[%clk 0:01:41]}  Qc7 {[%clk 0:01:51]} 12. Bh6 {[%clk 0:01:39]}  Re8 {[%clk 0:01:37]} 13. Ng5 {[%clk 0:01:38]}  e5 {[%clk 0:01:23]} 14. Rad1 {[%clk 0:01:20]}  Kh8 {[%clk 0:01:11]} 15. Qd2 {[%clk 0:01:03]}  Ng8 {[%clk 0:01:03]} 16. Qd6 {[%clk 0:01:03]}  Qe7 {[%clk 0:00:55]} 17. Qxe7 {[%clk 0:00:59]}  Rxe7 {[%clk 0:00:42]} 18. Bf8 {[%clk 0:00:58]}  Rc7 {[%clk 0:00:25]} 19. Bd6 {[%clk 0:00:54]}  Rd7 {[%clk 0:00:22]} 20. Bxc5 {[%clk 0:00:54]}  f6 {[%clk 0:00:17]} 21. Rxd7 {[%clk 0:00:46]}  Bxd7 {[%clk 0:00:18]} 22. Nf7+ {[%clk 0:00:46]}  Kg7 {[%clk 0:00:18]} 23. Nd6 {[%clk 0:00:47]}  b6 {[%clk 0:00:19]} 24. Be3 {[%clk 0:00:47]}  f5 {[%clk 0:00:11]} 25. exf5 {[%clk 0:00:45]}  gxf5 {[%clk 0:00:11]} 26. f4 {[%clk 0:00:46]}  e4 {[%clk 0:00:12]} 27. c5 {[%clk 0:00:45]}  Nf6 {[%clk 0:00:11]} 28. c4 {[%clk 0:00:38]}  Be6 {[%clk 0:00:10]} 29. Rb1 {[%clk 0:00:35]}  bxc5 {[%clk 0:00:03]} 30. Rb7+ {[%clk 0:00:33]}  Kg6 {[%clk 0:00:04]} 31. Bxc5 {[%clk 0:00:31]}  a5 {[%clk 0:00:05]} 32. a3 {[%clk 0:00:30]}  Rd8 {[%clk 0:00:04]} 33. Kf2 {[%clk 0:00:29]}  h5 {[%clk 0:00:03]} 34. Rb6 {[%clk 0:00:23]}  Ne7 {[%clk 0:00:01]} 35. Bd4 {[%clk 0:00:18]}  Nd7 {[%clk 0:00:01]} 36. Rb5 {[%clk 0:00:12]} 1-0


[Site "https://www.chess.com"]